Workbook

Sheet S-Curve Scenario
A1: Distributed PV Adoption Characteristics
A3: Base Year | B3: 2018
A4: Market Saturation % | B4: 0.2
A5: Start of Fast Growth | B5: 2019
A6: Takeover Time (Years) | B6: 4
A7: Smoothing Parameter | B7: 35
A8: Baseline MW Calibration Factor | B8: 0.01273372114 | C8: Set value so that cell B42 is equal to 500.
A10: Year | B10: 2018 | C10: 2019 | D10: =C10+1 -> 2020 | E10: 2021 | F10: 2022 | G10: 2023 | H10: 2024 | I10: 2025 | J10: 2026 | K10: 2027 | L10: 2028 | M10: 2029
A11: Market Penetration | B11: =(saturation/(1+smoothing^((fastgrowth+takeover/2-year)/takeover))+baseline_adoption_factor) -> 0.02572944582 | C11: 0.04165183751 | D11: 0.07100369812 | E11: 0.1127337211 | F11: 0.1544637442 | G11: 0.1838156048 | H11: 0.1997379965 | I11: 0.2071781656 | J11: 0.2104116626 | K11: 0.2117724729 | L11: 0.212337398 | M11: 0.212570589
A31: Distributed PV Penetration Forecast, Summer and Winter
C32: Comments
A33: Total Potential, MW | B33: =18433+1000 -> 19433 | C33: Total potential, 18,433 MW, is based on Table 4.3 of the AWS Truepower report, "Solar Site Screening and Hourly Generation Profiles," prepared for ERCOT. Link: http://www.ercot.com/content/wcm/lists/114800/ERCOT_Solar_SiteScreenHrlyProfiles_Jan2017.pdf An additional 2 GW of capacity potential was added to represent development outside of the four metropolitan areas represented in the distributed PV screening study (DFW, Houston, San Antonio, Austin)
A35: On-peak Capacity Contribution, Summer | B35: 0.36 | C35: Default of 36% is based on AWS Truepower Distributed PV hourly generation profiles.
A36: On-peak Capacity Contribution, Winter | B36: 0.083 | C36: Default of 8% is based on AWS Truepower Distributed PV hourly generation profiles.
A37: Embedded Load Forecast Amount (%) | B37: 0.8 | C37: Initial value is a best guess.
A38: Forecast Start Month, Summer | B38: 5 | C38: Set to the month prior to the Start-Month of the Summer Peak Load Season (example: setting to "5" captures May DG growth)
A39: Forecast Start Month, Winter | B39: 11 | C39: Set to the month prior to the Start-Month of the Winter Peak Load Season
B41: 2018 | C41: 2019 | D41: =C41+1 -> 2020 | E41: 2021 | F41: 2022 | G41: 2023 | H41: 2024 | I41: 2025 | J41: 2026 | K41: 2027 | L41: 2028 | M41: 2029
A42: Installed Capacity, End-Year | B42: =B$11*$B$33 -> 500.0003207 | C42: =C$11*$B$33 -> 809.4201583 | D42: 1379.814866 | E42: 2190.754403 | F42: 3001.69394 | G42: 3572.088647 | H42: 3881.508485 | I42: 4026.093292 | J42: 4088.92984 | K42: 4115.374465 | L42: 4126.352655 | M42: 4130.884256
A43: Installed Capacity, Summer Forecast Start Month | B43: =B$11*$B$33 -> 500.0003207 | C43: =B42+(C42-B42)*($B$38/12) -> 628.925253 | D43: =C42+(D42-C42)*($B$38/12) -> 1047.08462 | E43: 1717.706339 | F43: 2528.645877 | G43: 3239.358401 | H43: 3701.01358 | I43: 3941.752154 | J43: 4052.275187 | K43: 4099.948434 | L43: 4119.948711 | M43: 4128.240822
A44: Installed Capacity, Winter Forecast Start Month | B44: =B$11*$B$33 -> 500.0003207 | C44: =B43+(C43-B43)*($B$39/12) -> 618.1815087 | D44: =C43+(D43-C43)*($B$39/12) -> 1012.238006 | E44: 1661.821196 | F44: 2461.067582 | G44: 3180.132358 | H44: 3662.542315 | I44: 3921.690607 | J44: 4043.064934 | K44: 4095.975663 | L44: 4118.282021 | M44: 4127.549813
A45: On-Peak Ave. Capacity, Summer | B45: =B$43*$B35 -> 180.0001155 | C45: =C$43*$B35 -> 226.4130911 | D45: 376.9504631 | E45: 618.3742822 | F45: 910.3125156 | G45: 1166.169025 | H45: 1332.364889 | I45: 1419.030776 | J45: 1458.819067 | K45: 1475.981436 | L45: 1483.181536 | M45: 1486.166696
A46: On-Peak Ave. Capacity, Winter | B46: =B$44*$B36 -> 41.50002662 | C46: =C$44*$B36 -> 51.30906522 | D46: 84.01575448 | E46: 137.9311593 | F46: 204.2686093 | G46: 263.9509857 | H46: 303.9910121 | I46: 325.5003203 | J46: 335.5743895 | K46: 339.9659801 | L46: 341.8174078 | M46: 342.5866345
A47: Incremental DG Excluded from Load Forecast, Summer | B47: =B45*(1-$B$37) -> 36.00002309 | C47: =C45*(1-$B$37) -> 45.28261822 | D47: 75.39009262 | E47: 123.6748564 | F47: 182.0625031 | G47: 233.2338049 | H47: 266.4729777 | I47: 283.8061551 | J47: 291.7638135 | K47: 295.1962872 | L47: 296.6363072 | M47: 297.2333392
A48: Incremental DG Excluded from Load Forecast, Winter | B48: =B46*(1-$B$37) -> 8.300005324 | C48: 10.26181304 | D48: 16.8031509 | E48: 27.58623186 | F48: 40.85372186 | G48: 52.79019714 | H48: 60.79820243 | I48: 65.10006407 | J48: 67.11487791 | K48: 67.99319601 | L48: 68.36348155 | M48: 68.51732689

Sheet Dropdown Box Selections
A1: AnnAdd | B1: CapContrSummer | C1: CapContrWinter | D1: Month
A2: 0.1 | B2: 0.2 | C2: 0.05 | D2: 1
A3: 0.2 | B3: 0.3 | C3: 0.06 | D3: 2
A4: 0.3 | B4: 0.36 | C4: 0.07 | D4: 3
A5: 0.4 | B5: 0.4 | C5: 0.083 | D5: 4
A6: 0.5 | B6: 0.5 | C6: 0.09 | D6: 5
A7: 0.6 | C7: 0.1 | D7: 6
A8: 0.7 | C8: 0.11 | D8: 7
A9: 0.8 | D9: 8
A10: 0.9 | D10: 9
A11: 1 | D11: 10
D12: 11
D13: 12
